fUST/lending_fUST_20250624
["ID","MTS","AMOUNT","RATE_DAILY","PERIOD"]
[367193522,1750697466543,-460.0,0.00022077,2]
[367193523,1750697466553,-1996.8,0.00022077,2]
[367193524,1750697466564,-460.0,0.00022077,2]
[367193525,1750697466575,-945.39,0.00022077,2]
[367193526,1750697466586,-4607.43,0.00022077,2]
[367193527,1750697466597,-460.0,0.00022077,2]
[367193528,1750697466608,-607.26,0.00022077,2]
[367193529,1750697466618,-460.0,0.00022077,2]
[367193530,1750697466632,-460.0,0.00022128,2]
[367193531,1750697466643,-430.0,0.00022128,2]
[367193532,1750697466654,-460.0,0.00022128,2]
[367193533,1750697466664,-463.27,0.00022128,2]
[367193534,1750697466675,-839.46,0.00022128,2]
[367193535,1750697466685,-1010.76,0.00022128,2]
[367193536,1750697466696,-872.24,0.00022128,2]
[367193537,1750697466706,-460.0,0.00022128,2]
[367193538,1750697466717,-460.0,0.00022128,2]
[367193539,1750697466727,-772.7,0.00022128,2]
[367193540,1750697466737,-537.68193086,0.00022128,2]
[367193541,1750697466747,-460.0,0.00022128,2]
[367193542,1750697466758,-899.58,0.00022128,2]
[367193543,1750697466768,-460.0,0.00022128,2]
[367193544,1750697466778,-460.0,0.00022128,2]
[367193545,1750697466789,-428.57409162,0.00022128,2]
[367193546,1750697466799,-668.36,0.00022128,2]
[367193547,1750697466809,-1784.25,0.00022128,2]
[367193548,1750697466818,-460.0,0.00022128,2]
[367193549,1750697466829,-430.0,0.00022128,2]
[367193550,1750697466838,-731.7,0.00022128,2]
[367193551,1750697466848,-460.0,0.00022128,2]
[367193552,1750697466859,-460.0,0.00022128,2]
[367193553,1750697466869,-460.0,0.00022128,2]
[367193554,1750697466880,-460.0,0.00022128,2]
[367193555,1750697466890,-697.54,0.00022128,2]
[367193556,1750697466900,-460.0,0.00022128,2]
[367193557,1750697466911,-2125.8,0.00022128,2]
[367193558,1750697466921,-2125.8,0.00022128,2]
[367193559,1750697466931,-2125.8,0.00022128,2]
[367193560,1750697466941,-2125.8,0.00022128,2]
[367193561,1750697466951,-2125.81788386,0.00022128,2]
[367193562,1750697466960,-460.0,0.00022128,2]
[367193563,1750697466970,-460.0,0.00022128,2]
[367193564,1750697466980,-460.0,0.00022128,2]
[367193565,1750697466990,-801.56,0.00022128,2]
[367193566,1750697467000,-847.26,0.00022128,2]
[367193567,1750697467010,-460.0,0.00022128,2]
[367193568,1750697467020,-460.0,0.00022128,2]
[367193569,1750697467030,-1053.09,0.00022128,2]
[367193570,1750697467040,-994.48,0.00022128,2]
[367193571,1750697467049,-460.0,0.00022128,2]
[367193572,1750697467060,-727.12,0.00022128,2]
[367193573,1750697467069,-525.06,0.00022128,2]
[367193574,1750697467079,-725.26,0.00022128,2]
[367193575,1750697467089,-1046.81,0.00022128,2]
[367193576,1750697467099,-460.0,0.00022138,2]
[367193577,1750697467109,-460.0,0.00022138,2]
[367193578,1750697467119,-720.83,0.00022138,2]
[367193579,1750697467131,-460.0,0.00022138,2]
[367193580,1750697467142,-460.0,0.00022138,2]
[367193581,1750697467344,-460.0,0.00022138,2]
[367193582,1750697467355,-460.0,0.00022138,2]
[367193583,1750697467367,-460.0,0.00022138,2]
[367193584,1750697467379,-460.0,0.00022138,2]
[367193585,1750697467389,-151.0,0.00022138,7]
[367193586,1750697467398,-151.0,0.00022138,7]
[367193587,1750697467408,-338.794941,0.00022138,7]
[367193588,1750697467417,-338.794941,0.00022138,7]
[367193589,1750697467428,-1501.62931056,0.00022168,2]
[367193590,1750697467438,-1325.9287552,0.00022168,2]
[367193591,1750697467448,-1081.95582221,0.00022168,2]
[367193592,1750697467457,-500.0,0.00022173,2]
[367193593,1750697467467,-500.35270587,0.00022173,2]
[367193594,1750697467477,-500.0,0.00022173,2]
[367193595,1750697467487,-500.0,0.00022173,2]
[367193596,1750697467498,-500.0,0.00022173,2]
[367193597,1750697467507,-500.0,0.00022173,2]
[367193598,1750697467518,-150.0,0.00022173,2]
[367193599,1750697467528,-460.0,0.00022189,2]
[367193600,1750697467538,-524.08,0.00022189,2]
[367193601,1750697467549,-524.08,0.00022189,2]
[367193602,1750697467559,-768.34,0.00022189,2]
[367193603,1750697467569,-768.34,0.00022189,2]
[367193604,1750697467580,-460.0,0.00022189,2]
[367193605,1750697467590,-462.01,0.00022189,2]
[367193606,1750697467601,-1080.4,0.00022189,2]
[367193607,1750697467611,-523.6,0.00022189,2]
[367193608,1750697467623,-376.00838907,0.00022189,2]
[367193609,1750697467641,-666.99,0.00022189,2]
[367193610,1750697467653,-273.68655712,0.00022189,2]
[367193611,1750697467663,-649.66,0.00022189,2]
[367193612,1750697467674,-577.48,0.00022189,2]
[367193613,1750697467685,-460.0,0.00022189,2]
[367193614,1750697467694,-271.31629779,0.00022189,2]
[367193615,1750697467704,-803.94,0.00022189,2]
[367193616,1750697467714,-941.33,0.00022189,2]
[367193617,1750697467724,-460.0,0.00022189,2]
[367193618,1750697467733,-463.65,0.00022189,2]
[367193619,1750697467743,-460.0,0.00022189,2]
[367193620,1750697467753,-734.18,0.00022189,2]
[367193621,1750697467762,-460.0,0.00022189,2]
[367193622,1750697467771,-632.86,0.00022189,2]
[367193623,1750697467781,-460.0,0.00022189,2]
[367193624,1750697467790,-460.0,0.00022189,2]
[367193625,1750697467799,-460.0,0.00022189,2]
[367193626,1750697467809,-586.65,0.00022189,2]
[367193627,1750697467819,-783.14,0.00022189,2]
[367193628,1750697467828,-460.0,0.00022189,2]
[367193629,1750697467837,-1907.71,0.00022189,2]
[367193630,1750697467846,-691.12,0.00022189,2]
[367193631,1750697467857,-460.0,0.00022189,2]
[367193632,1750697467867,-460.0,0.00022189,2]
[367193633,1750697467881,-462.32,0.00022189,2]
[367193634,1750697467891,-460.0,0.00022189,2]
[367193635,1750697467900,-895.18,0.00022189,2]
[367193636,1750697467909,-460.0,0.00022189,2]
[367193637,1750697467918,-460.0,0.00022189,2]
[367193638,1750697467927,-677.91,0.00022189,2]
[367193639,1750697467937,-460.0,0.00022189,2]
[367193640,1750697467947,-767.32,0.00022189,2]
[367193641,1750697467957,-984.13,0.00022189,2]
[367193642,1750697467966,-801.12,0.00022189,2]
[367193643,1750697467977,-1131.78,0.00022189,2]
[367193644,1750697467987,-2069.55,0.00022189,2]
[367193645,1750697467998,-1331.56,0.00022189,2]
[367193646,1750697468009,-574.96,0.00022189,2]
[367193647,1750697468019,-530.44,0.00022189,2]
[367193648,1750697468029,-460.0,0.00022189,2]
[367193649,1750697468039,-976.96,0.00022189,2]
[367193650,1750697468050,-2037.71,0.00022189,2]
[367193651,1750697468059,-1166.86,0.00022189,2]
[367193652,1750697468069,-658.74,0.00022189,2]
[367193653,1750697468079,-460.0,0.00022189,2]
[367193654,1750697468089,-460.0,0.00022189,2]
[367193655,1750697468099,-645.9,0.00022189,2]
[367193656,1750697468109,-607.83,0.00022189,2]
[367193657,1750697468119,-548.66,0.00022189,2]
[367193658,1750697468134,-460.0,0.0002219,2]
[367193659,1750697468143,-764.48,0.0002219,2]
[367193660,1750697468153,-821.95,0.0002219,2]
[367193661,1750697468162,-616.46,0.0002219,2]
[367193662,1750697468172,-623.62,0.0002219,2]
[367193663,1750697468181,-460.0,0.0002219,2]
[367193664,1750697468191,-460.0,0.0002219,2]
[367193665,1750697468204,-468.54,0.0002219,2]
[367193666,1750697468214,-460.0,0.0002219,2]
[367193667,1750697468224,-460.0,0.0002219,2]
[367193668,1750697468235,-460.0,0.0002219,2]
[367193669,1750697468246,-460.0,0.0002219,2]
[367193670,1750697468255,-460.0,0.0002219,2]
[367193671,1750697468265,-460.0,0.0002219,2]
[367193672,1750697468275,-460.0,0.0002219,2]
[367193673,1750697468286,-699.97,0.0002219,2]
[367193674,1750697468295,-984.08,0.0002219,2]
[367193675,1750697468305,-2304.0,0.0002219,2]
[367193676,1750697468316,-845.92,0.0002219,2]
[367193677,1750697468326,-773.26,0.0002219,2]
[367193678,1750697468335,-3459.6,0.0002219,2]
[367193679,1750697468345,-460.0,0.0002219,2]
[367193680,1750697468354,-460.0,0.0002219,2]
[367193681,1750697468364,-573.77,0.0002219,2]
[367193682,1750697468377,-460.0,0.0002219,2]
[367193683,1750697468388,-532.82,0.0002219,2]
[367193684,1750697468397,-460.0,0.0002219,2]
[367193685,1750697468406,-1283.0,0.0002219,2]
[367193686,1750697468416,-788.52,0.0002219,2]
[367193687,1750697468426,-5163.31,0.0002219,2]
[367193688,1750697468436,-1680.77,0.0002219,2]
[367193689,1750697468447,-587.82,0.0002219,2]
[367193690,1750697468457,-12520.38,0.0002219,2]
[367193691,1750697468466,-970.2,0.0002219,2]
[367193692,1750697468477,-1785.46,0.0002219,2]
[367193693,1750697468486,-4776.5,0.0002219,2]
[367193694,1750697468496,-1188.31,0.0002219,2]
[367193695,1750697468506,-1838.21,0.0002219,2]
[367193696,1750697468515,-460.0,0.0002219,2]
[367193697,1750697468524,-616.21,0.00022191,2]
[367193698,1750697468535,-460.0,0.00022191,2]
[367193699,1750697468545,-460.0,0.00022191,2]
[367193700,1750697468555,-460.0,0.00022191,2]
[367193701,1750697468565,-615.98,0.00022191,2]
[367193702,1750697468574,-614.46,0.00022191,2]
[367193703,1750697468584,-460.0,0.00022191,2]
[367193704,1750697468593,-617.88,0.00022191,2]
[367193705,1750697468603,-1431.97,0.00022191,2]
[367193706,1750697468612,-460.0,0.00022191,2]
[367193707,1750697468621,-460.0,0.00022191,2]
[367193708,1750697468635,-909.95,0.00022191,2]
[367193709,1750697468645,-460.0,0.00022191,2]
[367193710,1750697468654,-526.76,0.00022191,2]
[367193711,1750697468664,-460.0,0.00022191,2]
[367193712,1750697468673,-780.77,0.00022191,2]
[367193713,1750697468683,-460.0,0.00022191,2]
[367193714,1750697468693,-460.0,0.00022191,2]
[367193715,1750697468703,-495.61,0.00022191,2]
[367193716,1750697468712,-412.81915587,0.00022191,2]
[367193717,1750697468721,-460.0,0.00022191,2]
[367193718,1750697468730,-460.0,0.00022191,2]
[367193719,1750697468740,-651.77,0.00022191,2]
[367193720,1750697468749,-585.51,0.00022191,2]
[367193721,1750697468759,-460.0,0.00022191,2]
[367193722,1750697468768,-460.0,0.00022191,2]
[367193723,1750697468777,-460.0,0.00022191,2]
[367193724,1750697468786,-208.39932745,0.00022191,2]
[367193725,1750697468796,-460.0,0.00022191,2]
[367193726,1750697468805,-2845.44,0.00022191,2]
[367193727,1750697468814,-500.0,0.00022191,2]
[367193728,1750697468823,-460.0,0.00022191,2]
[367193729,1750697468833,-806.82,0.00022191,2]
[367193730,1750697468842,-460.0,0.00022191,2]
[367193731,1750697468851,-662.46,0.00022191,2]
[367193732,1750697468861,-1029.25,0.00022191,2]
[367193733,1750697468871,-1895.61,0.00022191,2]
[367193734,1750697468885,-460.0,0.00022191,2]
[367193735,1750697468894,-1073.31,0.00022191,2]
[367193736,1750697468903,-1897.12,0.00022191,2]
[367193737,1750697468913,-460.0,0.00022191,2]
[367193738,1750697468922,-1134.25,0.00022191,2]
[367193739,1750697468931,-991.59,0.00022191,2]
[367193740,1750697468941,-572.39854878,0.00022191,2]
[367193741,1750697468950,-588.15,0.00022191,2]
[367193742,1750697468959,-460.0,0.00022191,2]
[367193743,1750697468969,-460.0,0.00022191,2]
[367193744,1750697468978,-460.0,0.00022191,2]
[367193745,1750697468988,-460.0,0.00022191,2]
[367193746,1750697468998,-870.3,0.00022191,2]
[367193747,1750697469007,-510.67,0.00022191,2]
[367193748,1750697469017,-1318.26,0.00022191,2]
[367193749,1750697469029,-460.0,0.00022191,2]
[367193750,1750697469038,-500.0,0.00022191,10]
[367193751,1750697469048,-460.0,0.00022191,2]
[367193752,1750697469057,-807.85,0.00022191,2]
[367193753,1750697469066,-460.0,0.00022191,2]
[367193754,1750697469075,-523.74,0.00022191,2]
[367193755,1750697469085,-460.0,0.00022191,2]
[367193756,1750697469094,-460.0,0.00022191,2]
[367193757,1750697469104,-480.9,0.00022191,2]
[367193758,1750697469113,-356.93352142,0.00022191,2]
[367193759,1750697469122,-709.92,0.00022191,2]
[367193760,1750697469134,-460.0,0.00022191,2]
[367193761,1750697469144,-460.0,0.00022191,2]
[367193762,1750697469153,-926.56,0.00022191,2]
[367193763,1750697469163,-1047.54,0.00022191,2]
[367193764,1750697469172,-814.8,0.00022191,2]
[367193765,1750697469182,-460.0,0.00022191,2]
[367193766,1750697469192,-5076.91,0.00022191,2]
[367193767,1750697469204,-460.0,0.00022191,2]
[367193768,1750697469214,-460.0,0.00022191,2]
[367193769,1750697469223,-460.0,0.00022191,2]
[367193770,1750697469232,-639.64,0.00022191,2]
[367193771,1750697469243,-1458.11,0.00022191,2]
[367193772,1750697469252,-1180.24,0.00022191,2]
[367193773,1750697469262,-721.42,0.00022191,2]
[367193774,1750697469271,-3757.48,0.00022191,2]
[367193775,1750697469282,-460.0,0.00022191,2]
[367193776,1750697469293,-799.52,0.00022191,2]
[367193777,1750697469303,-1092.87,0.00022191,2]
[367193778,1750697469313,-460.0,0.00022191,2]
[367193779,1750697469323,-460.0,0.00022191,2]
[367193780,1750697469333,-601.80947835,0.00022191,2]
[367193781,1750697469342,-863.84,0.00022191,2]
[367193782,1750697469352,-460.0,0.00022191,2]
[367193783,1750697469362,-460.0,0.00022191,2]
[367193784,1750697469373,-460.0,0.00022191,2]
[367193785,1750697469385,-1023.23,0.00022191,2]
[367193786,1750697469394,-815.28,0.00022191,2]
[367193787,1750697469404,-708.949042,0.00022191,7]
[367193788,1750697469414,-708.949042,0.00022191,7]
[367193789,1750697469424,-460.0,0.00022191,2]
[367193790,1750697469433,-485.2,0.00022191,2]
[367193791,1750697469442,-460.0,0.00022191,2]
[367193792,1750697469452,-460.18,0.00022191,2]
[367193793,1750697469462,-460.0,0.00022191,2]
[367193794,1750697469472,-644.42,0.00022191,2]
[367193795,1750697469482,-151.0,0.00022191,7]
[367193796,1750697469491,-151.0,0.00022191,7]
[367193797,1750697469501,-460.0,0.00022191,2]
[367193798,1750697469511,-460.0,0.00022191,2]
[367193799,1750697469521,-151.0,0.00022191,7]
[367193800,1750697469531,-1098.44,0.00022191,2]
[367193801,1750697469540,-151.0,0.00022191,7]
[367193802,1750697469550,-151.0,0.00022191,7]
[367193803,1750697469559,-749.34,0.00022191,2]
[367193804,1750697469569,-460.0,0.00022191,2]
[367193805,1750697469578,-151.0,0.000222,8]
[367193806,1750697469588,-2000.0,0.00022216,2]
[367193807,1750697469597,-500.0,0.00022216,2]
[367193808,1750697469607,-1500.0,0.00022216,2]
[367193809,1750697469616,-1500.0,0.00022216,2]
[367193810,1750697469627,-502.40315064,0.00022216,2]
[367193811,1750697469638,-2000.0,0.00022216,2]
[367193812,1750697469648,-500.0,0.00022216,2]
[367193813,1750697469657,-1500.0,0.00022216,2]
[367193814,1750697469667,-2000.0,0.00022216,2]
[367193815,1750697469677,-1002.88923,0.00022221,2]
[367193816,1750697469687,-1000.0,0.00022221,2]
[367193817,1750697469698,-1000.0,0.00022221,2]
[367193818,1750697469708,-1000.0,0.00022221,2]
[367193819,1750697469718,-1000.0,0.00022221,2]
[367193820,1750697469729,-1000.0,0.00022221,2]
[367193821,1750697469738,-1000.0,0.00022221,2]
[367193822,1750697469748,-1031.0677499,0.00022221,2]
[367193823,1750697469758,-500.0,0.00022221,2]
[367193824,1750697469767,-1000.0,0.00022221,2]
[367193825,1750697469777,-632.98579875,0.00022221,2]
[367193826,1750697469787,-1000.0,0.00022221,2]
[367193827,1750697469797,-1200.0,0.00022221,2]
[367193828,1750697469806,-1000.0,0.00022221,2]
[367193829,1750697469816,-1000.0,0.00022221,2]
[367193830,1750697469825,-1000.0,0.00022221,2]
[367193831,1750697469835,-1000.0,0.00022221,2]
[367193832,1750697469844,-586.01766069,0.00022221,2]
[367193833,1750697469853,-927.49798714,0.00022221,2]
[367193834,1750697469863,-1000.0,0.00022221,2]
[367193835,1750697469872,-1000.0,0.00022221,2]
[367193836,1750697469884,-542.889047,0.00022221,2]
[367193837,1750697469894,-724.94714106,0.00022221,2]
[367193838,1750697469904,-1007.22420116,0.00022221,2]
[367193839,1750697469913,-1000.0,0.00022221,2]
[367193840,1750697469922,-1500.0,0.00022278,2]
[367193841,1750697469932,-169.42703452,0.00022278,2]
[367193842,1750697469941,-1500.0,0.00022285,2]
[367193843,1750697469950,-1500.0,0.00022285,2]
[367193844,1750697469960,-460.0,0.00022302,2]
[367193845,1750697469969,-460.0,0.00022302,2]
[367193846,1750697469978,-460.0,0.00022302,2]
[367193847,1750697469988,-460.0,0.00022302,2]
[367193848,1750697469997,-835.53,0.00022302,2]
[367193849,1750697470007,-513.8729578,0.00022302,2]
[367193850,1750697470016,-759.73,0.00022302,2]
[367193851,1750697470026,-460.0,0.00022302,2]
[367193852,1750697470036,-548.36,0.00022302,2]
[367193853,1750697470045,-1104.61,0.00022302,2]
[367193854,1750697470055,-460.0,0.00022302,2]
[367193855,1750697470064,-717.0,0.00022302,2]
[367193856,1750697470074,-555.53,0.00022302,2]
[367193857,1750697470083,-460.0,0.00022302,2]
[367193858,1750697470092,-460.0,0.00022302,2]
[367193859,1750697470101,-460.0,0.00022302,2]
[367193860,1750697470111,-460.0,0.00022302,2]
[367193861,1750697470120,-325.35857146,0.00022302,2]
[367193862,1750697470132,-460.0,0.00022302,2]
[367193863,1750697470142,-460.0,0.00022302,2]
[367193864,1750697470152,-460.0,0.00022302,2]
[367193865,1750697470161,-513.86,0.00022302,2]
[367193866,1750697470171,-654.29,0.00022302,2]
[367193867,1750697470181,-1299.81,0.00022302,2]
[367193868,1750697470191,-460.0,0.00022302,2]
[367193869,1750697470206,-460.0,0.00022302,2]
[367193870,1750697470215,-460.0,0.00022302,2]
[367193871,1750697470225,-460.0,0.00022302,2]
[367193872,1750697470234,-451.61416873,0.00022302,2]
[367193873,1750697470244,-460.0,0.00022302,2]
[367193874,1750697470254,-680.11,0.00022302,2]
[367193875,1750697470263,-460.0,0.00022314,2]
[367193876,1750697470273,-460.0,0.00022314,2]
[367193877,1750697470283,-465.80690721,0.00022314,2]
[367193878,1750697470292,-941.81,0.00022314,2]
[367193879,1750697470302,-1302.16,0.00022314,2]
[367193880,1750697470312,-460.0,0.00022314,2]
[367193881,1750697470321,-1027.63,0.00022314,2]
[367193882,1750697470331,-3007.82,0.00022314,2]
[367193883,1750697470341,-2258.64,0.00022314,2]
[367193884,1750697470351,-620.37,0.00022314,2]
[367193885,1750697470367,-384.5,0.00022348,4]
[367193886,1750697470391,-805.9,0.0002235,2]
[367193887,1750697470412,-460.0,0.0002235,2]
[367193888,1750697470424,-618.81,0.0002235,2]
[367193889,1750697470434,-473.78,0.0002235,2]
[367193890,1750697470444,-664.37,0.0002235,2]
[367193891,1750697470454,-618.48,0.0002235,2]
[367193892,1750697470463,-730.09,0.0002235,2]
[367193893,1750697470473,-924.89,0.0002235,2]
[367193894,1750697470483,-742.52,0.00022351,2]
[367193895,1750697470492,-767.77,0.00022351,2]
[367193896,1750697470502,-460.0,0.00022351,2]
[367193897,1750697470511,-460.0,0.00022351,2]
[367193898,1750697470521,-460.0,0.00022351,2]
[367193899,1750697470530,-3331.18,0.00022351,2]
[367193900,1750697470540,-1808.96,0.00022351,2]
[367193901,1750697470550,-597.17,0.00022351,2]
[367193902,1750697470559,-522.83,0.00022351,2]
[367193903,1750697470569,-993.39,0.00022351,2]
[367193904,1750697470579,-460.0,0.00022351,2]
[367193905,1750697470588,-1938.6,0.00022351,2]
[367193906,1750697470599,-4171.75,0.00022351,2]
[367193907,1750697470609,-460.0,0.00022351,2]
[367193908,1750697470619,-798.39,0.00022351,2]
[367193909,1750697470633,-662.12,0.00022351,2]
[367193910,1750697470643,-644.67,0.00022351,2]
[367193911,1750697470652,-1922.25,0.00022351,2]
[367193912,1750697470661,-500.56,0.00022351,2]
[367193913,1750697470671,-460.0,0.00022351,2]
[367193914,1750697470681,-1338.64,0.00022351,2]
[367193915,1750697470690,-2510.12,0.00022351,2]
[367193916,1750697470700,-460.0,0.00022351,2]
[367193917,1750697470710,-1996.8,0.00022351,2]
[367193918,1750697470720,-581.04639157,0.00022351,2]
[367193919,1750697470729,-945.39,0.00022351,2]
[367193920,1750697470738,-4607.43,0.00022351,2]
[367193921,1750697470747,-460.0,0.00022351,2]
[367193922,1750697470757,-607.26,0.00022351,2]
[367193923,1750697470766,-1391.26099927,0.00022361,2]
[367193924,1750697470776,-500.0,0.00022373,2]
[367193925,1750697470785,-500.55331595,0.00022373,2]
[367193926,1750697470794,-209.38262339,0.00022373,2]
[367193927,1750697470964,-500.0,0.00022373,2]
[367193928,1750697470975,-500.0,0.00022373,2]
[367193929,1750697470984,-500.0,0.00022373,2]
[367193930,1750697470994,-500.0,0.00022373,2]
[367193931,1750697471004,-256.836807,0.00022373,7]
[367193932,1750697471013,-256.836807,0.00022373,7]
[367193933,1750697471022,-371.061309,0.00022373,2]
[367193934,1750697471032,-371.061309,0.00022373,2]
[367193935,1750697471041,-151.0,0.00022373,7]
[367193936,1750697471051,-151.0,0.00022373,7]
[367193937,1750697471060,-151.0,0.00022373,7]
[367193938,1750697471070,-151.0,0.00022373,7]
[367193939,1750697471079,-55818.15,0.000224,2]
[367193940,1750697471089,-151.0,0.000224,7]
[367193941,1750697471099,-151.0,0.000224,7]
[367193942,1750697471108,-460.0,0.00022402,2]
[367193943,1750697471117,-463.27,0.00022402,2]
[367193944,1750697471130,-839.46,0.00022402,2]
[367193945,1750697471139,-1010.76,0.00022402,2]
[367193946,1750697471148,-872.24,0.00022402,2]
[367193947,1750697471158,-460.0,0.00022402,2]
[367193948,1750697471167,-460.0,0.00022402,2]
[367193949,1750697471176,-772.7,0.00022402,2]
[367193950,1750697471186,-481.53,0.00022402,2]
[367193951,1750697471197,-899.58,0.00022402,2]
[367193952,1750697471206,-460.0,0.00022402,2]
[367193953,1750697471216,-668.36,0.00022402,2]
[367193954,1750697471226,-1784.25,0.00022402,2]
[367193955,1750697471236,-460.0,0.00022402,2]
[367193956,1750697471246,-731.7,0.00022402,2]
[367193957,1750697471255,-460.0,0.00022402,2]
[367193958,1750697471264,-460.0,0.00022402,2]
[367193959,1750697471275,-460.0,0.00022402,2]
[367193960,1750697471285,-460.0,0.00022402,2]
[367193961,1750697471295,-697.54,0.00022402,2]
[367193962,1750697471304,-460.0,0.00022402,2]
[367193963,1750697471314,-460.0,0.00022402,2]
[367193964,1750697471323,-460.0,0.00022402,2]
[367193965,1750697471333,-460.0,0.00022402,2]
[367193966,1750697471342,-801.56,0.00022402,2]
[367193967,1750697471352,-847.26,0.00022402,2]
[367193968,1750697471361,-460.0,0.00022402,2]
[367193969,1750697471371,-460.0,0.00022402,2]
[367193970,1750697471381,-1053.09,0.00022402,2]
[367193971,1750697471390,-994.48,0.00022402,2]
[367193972,1750697471400,-460.0,0.00022402,2]
[367193973,1750697471410,-727.12,0.00022402,2]
[367193974,1750697471419,-525.06,0.00022402,2]
[367193975,1750697471428,-725.26,0.00022402,2]
[367193976,1750697471438,-1046.81,0.00022402,2]
[367193977,1750697471447,-460.0,0.00022412,2]
[367193978,1750697471457,-460.0,0.00022412,2]
[367193979,1750697471469,-720.83,0.00022412,2]
[367193980,1750697471479,-460.0,0.00022412,2]
[367193981,1750697471488,-356.61855814,0.00022412,2]
[367193982,1750697471498,-460.0,0.00022412,2]
[367193983,1750697471507,-460.0,0.00022412,2]
[367193984,1750697471517,-460.0,0.00022412,2]
[367193985,1750697471526,-500.0,0.00022415,2]
[367193986,1750697471536,-151.0,0.00022415,2]
[367193987,1750697471546,-500.0,0.00022415,2]
[367193988,1750697471555,-500.0,0.00022415,2]
[367193989,1750697471565,-500.0,0.00022415,2]
[367193990,1750697471574,-500.0,0.00022415,2]
[367193991,1750697471584,-500.0,0.00022415,2]
[367193992,1750697471593,-500.0,0.00022415,2]
[367193993,1750697471602,-151.0,0.00022415,2]
[367193994,1750697471612,-151.0,0.00022415,2]
[367193995,1750697471622,-500.0,0.00022415,2]
[367193996,1750697471632,-151.0,0.00022415,2]
[367193997,1750697471642,-151.0,0.00022415,2]
[367193998,1750697471651,-500.0,0.00022415,2]
[367193999,1750697471660,-151.0,0.00022415,2]
[367194000,1750697471670,-151.0,0.00022415,2]
[367194001,1750697471679,-151.0,0.00022415,2]
[367194002,1750697471689,-151.14697884,0.00022415,2]
[367194003,1750697471698,-500.0,0.00022415,2]
[367194004,1750697471707,-151.0,0.00022415,2]
[367194005,1750697471717,-151.0,0.00022415,2]
[367194006,1750697471726,-151.0,0.00022415,2]
[367194007,1750697471736,-151.0,0.00022415,2]
[367194008,1750697471745,-252.68033167,0.00022415,2]
[367194009,1750697471754,-500.0,0.00022415,2]
[367194010,1750697471764,-151.0,0.00022415,2]
[367194011,1750697471774,-151.0,0.00022415,2]
[367194012,1750697471784,-151.0,0.00022415,2]
[367194013,1750697471793,-163.87460005,0.00022415,2]
[367194014,1750697471803,-151.0,0.00022415,2]
[367194015,1750697471812,-151.0,0.00022415,2]
[367194016,1750697471822,-151.8409273,0.00022415,2]
[367194017,1750697471831,-151.0,0.00022415,2]
[367194018,1750697471841,-151.0,0.00022415,2]
[367194019,1750697471850,-152.14900843,0.00022415,2]
[367194020,1750697471860,-500.0,0.00022415,2]
[367194021,1750697471870,-151.0,0.00022415,2]